Workbook

Sheet GOLF
A1: Tirage | B1: Nom | C1: Foursome | D1: Carte tri | E1: 1 | F1: 2 | G1: 3 | H1: 4 | I1: 5 | J1: 6 | K1: 7 | L1: 8 | M1: 9 | N1: 10 | O1: 11 | P1: 12 | Q1: 13 | R1: 14 | S1: 15 | T1: 16 | U1: 17 | V1: 18 | W1: 1- 9 | X1: 10-18 | Y1: Score | Z1: Index 06-20 | AA1: Calcuta | AC1: Tirage | AD1: Nom | AE1: Calcuta | AF1: Total | AI1: nom a voir
A2: 1 | B2: André | C2: 1 | D2: 1 | E2: 1 | F2: 1 | G2: 1 | H2: 1 | I2: 1 | J2: 1 | K2: 1 | L2: 1 | M2: 1 | N2: 1 | O2: 1 | P2: 1 | Q2: 1 | R2: 1 | S2: 1 | T2: 1 | U2: 1 | V2: 1 | W2: =SUM(E2:M2) -> 9 | X2: =SUM(N2:V2) -> 9 | Y2: 94 | Z2: 27 | AA2: =IF(Y2>0,Y2-Z2,0) -> 67 | AC2: 1 | AD2: =VLOOKUP(AC2,$A$1:$AA$47,2,FALSE) -> André | AE2: =VLOOKUP(AC2,$A$1:$AA$47,27,FALSE) -> 67 | AF2: =AF3 -> 148 | AH2: Position 1
A3: 1 | B3: Anik | C3: 1 | D3: 2 | E3: 1 | F3: 1 | G3: 1 | H3: 1 | I3: 1 | J3: 1 | K3: 1 | L3: 1 | M3: 1 | N3: 1 | O3: 1 | P3: 1 | Q3: 1 | R3: 1 | S3: 1 | T3: 1 | U3: 1 | V3: 1 | W3: 9 | X3: 9 | Y3: 100 | Z3: 15 | AA3: 85 | AC3: 2 | AD3: Conrad | AE3: 81 | AF3: =+AE3+AE2 -> 148
A4: 31 | B4: Benoit | C4: 1 | D4: 3 | E4: 1 | F4: 1 | G4: 1 | H4: 1 | I4: 1 | J4: 1 | K4: 1 | L4: 1 | M4: 1 | N4: 1 | O4: 1 | P4: 1 | Q4: 1 | R4: 1 | S4: 1 | T4: 1 | U4: 1 | V4: 1 | W4: 9 | X4: 9 | Y4: 100 | Z4: 14 | AA4: 86 | AC4: 3 | AD4: Luc | AE4: 82 | AF4: =AF5 -> 166 | AH4: =MIN(AF2:AF47) -> 
A5: 2 | B5: Conrad | C5: 1 | D5: 4 | E5: 1 | F5: 1 | G5: 1 | H5: 1 | I5: 1 | J5: 1 | K5: 1 | L5: 1 | M5: 1 | N5: 1 | O5: 1 | P5: 1 | Q5: 1 | R5: 1 | S5: 1 | T5: 1 | U5: 1 | V5: 1 | W5: 9 | X5: 9 | Y5: 100 | Z5: 19 | AA5: 81 | AC5: 4 | AD5: Gilles | AE5: 84 | AF5: =+AE5+AE4 -> 166
A6: 36 | B6: Daniel | C6: 2 | D6: 1 | E6: 1 | F6: 1 | G6: 1 | H6: 1 | I6: 1 | J6: 1 | K6: 1 | L6: 1 | M6: 1 | N6: 1 | O6: 1 | P6: 1 | Q6: 1 | R6: 1 | S6: 1 | T6: 1 | U6: 1 | V6: 1 | W6: 9 | X6: 9 | Y6: 100 | Z6: 12 | AA6: 88 | AC6: 5 | AD6: Louise3 | AE6: 78 | AF6: =AF7 -> 161
A7: 8 | B7: Denis | C7: 2 | D7: 2 | E7: 1 | F7: 1 | G7: 1 | H7: 1 | I7: 1 | J7: 1 | K7: 1 | L7: 1 | M7: 1 | N7: 1 | O7: 1 | P7: 1 | Q7: 1 | R7: 1 | S7: 1 | T7: 1 | U7: 1 | V7: 1 | W7: 9 | X7: 9 | Y7: 100 | Z7: 17 | AA7: 83 | AC7: 6 | AD7: Jacques4 | AE7: 83 | AF7: =+AE7+AE6 -> 161 | AH7: Position 2
A8: 1 | B8: Denis1 | C8: 2 | D8: 3 | E8: 1 | F8: 1 | G8: 1 | H8: 1 | I8: 1 | J8: 1 | K8: 1 | L8: 1 | M8: 1 | N8: 1 | O8: 1 | P8: 1 | Q8: 1 | R8: 1 | S8: 1 | T8: 1 | U8: 1 | V8: 1 | W8: 9 | X8: 9 | Y8: 100 | Z8: 13 | AA8: 87 | AC8: 7 | AF8: =AF9 -> 
A9: 10 | B9: Denise | C9: 2 | D9: 4 | E9: 1 | F9: 1 | G9: 1 | H9: 1 | I9: 1 | J9: 1 | K9: 1 | L9: 1 | M9: 1 | N9: 1 | O9: 1 | P9: 1 | Q9: 1 | R9: 1 | S9: 1 | T9: 1 | U9: 1 | V9: 1 | W9: 9 | X9: 9 | Y9: 100 | Z9: 15 | AA9: 85 | AC9: 8 | AD9: Denis | AE9: 83 | AF9: =+AE9+AE8 ->  | AH9: =SMALL(AF2:AF47,3) ->  | AK9: exemple si je choisis anik
A10: 21 | B10: Denise2 | C10: 3 | D10: 1 | E10: 1 | F10: 1 | G10: 1 | H10: 1 | I10: 1 | J10: 1 | K10: 1 | L10: 1 | M10: 1 | N10: 1 | O10: 1 | P10: 1 | Q10: 1 | R10: 1 | S10: 1 | T10: 1 | U10: 1 | V10: 1 | W10: 9 | X10: 9 | Y10: 100 | Z10: 14 | AA10: 86 | AC10: 9 | AF10: =AF11 ->  | AK10: benoit est en bleu
A11: 23 | B11: Gilbert | C11: 3 | D11: 2 | E11: 1 | F11: 1 | G11: 1 | H11: 1 | I11: 1 | J11: 1 | K11: 1 | L11: 1 | M11: 1 | N11: 1 | O11: 1 | P11: 1 | Q11: 1 | R11: 1 | S11: 1 | T11: 1 | U11: 1 | V11: 1 | W11: 9 | X11: 9 | Y11: 100 | Z11: 14 | AA11: 86 | AC11: 10 | AD11: Denise | AE11: 85 | AF11: =+AE11+AE10 -> 
A12: 4 | B12: Gilles | C12: 3 | D12: 3 | E12: 1 | F12: 1 | G12: 1 | H12: 1 | I12: 1 | J12: 1 | K12: 1 | L12: 1 | M12: 1 | N12: 1 | O12: 1 | P12: 1 | Q12: 1 | R12: 1 | S12: 1 | T12: 1 | U12: 1 | V12: 1 | W12: 9 | X12: 9 | Y12: 100 | Z12: 16 | AA12: 84 | AC12: 11 | AD12: Jacques1 | AE12: 76 | AF12: =AF13 -> 154 | AH12: Position 3
A13: 20 | B13: Ginette | C13: 3 | D13: 4 | E13: 1 | F13: 1 | G13: 1 | H13: 1 | I13: 1 | J13: 1 | K13: 1 | L13: 1 | M13: 1 | N13: 1 | O13: 1 | P13: 1 | Q13: 1 | R13: 1 | S13: 1 | T13: 1 | U13: 1 | V13: 1 | W13: 9 | X13: 9 | Y13: 100 | Z13: 16 | AA13: 84 | AC13: 12 | AD13: Louise2 | AE13: 78 | AF13: =+AE13+AE12 -> 154
A14: 41 | B14: Guy | C14: 4 | D14: 1 | E14: 1 | F14: 1 | G14: 1 | H14: 1 | I14: 1 | J14: 1 | K14: 1 | L14: 1 | M14: 1 | N14: 1 | O14: 1 | P14: 1 | Q14: 1 | R14: 1 | S14: 1 | T14: 1 | U14: 1 | V14: 1 | W14: 9 | X14: 9 | Y14: 100 | Z14: 14 | AA14: 86 | AC14: 13 | AF14: =AF15 ->  | AH14: =SMALL(AF2:AF47,5) -> 
A15: 24 | B15: Guy1 | C15: 4 | D15: 2 | E15: 1 | F15: 1 | G15: 1 | H15: 1 | I15: 1 | J15: 1 | K15: 1 | L15: 1 | M15: 1 | N15: 1 | O15: 1 | P15: 1 | Q15: 1 | R15: 1 | S15: 1 | T15: 1 | U15: 1 | V15: 1 | W15: 9 | X15: 9 | Y15: 100 | Z15: 10 | AA15: 90 | AC15: 14 | AD15: Pierre2 | AE15: 90 | AF15: =+AE15+AE14 -> 
A16: 11 | B16: Jacques1 | C16: 4 | D16: 3 | E16: 1 | F16: 1 | G16: 1 | H16: 1 | I16: 1 | J16: 1 | K16: 1 | L16: 1 | M16: 1 | N16: 1 | O16: 1 | P16: 1 | Q16: 1 | R16: 1 | S16: 1 | T16: 1 | U16: 1 | V16: 1 | W16: 9 | X16: 9 | Y16: 100 | Z16: 24 | AA16: 76 | AC16: 15 | AD16: Sandy | AE16: 81 | AF16: =AF17 -> 158
A17: 2 | B17: Jacques2 | C17: 4 | D17: 4 | E17: 1 | F17: 1 | G17: 1 | H17: 1 | I17: 1 | J17: 1 | K17: 1 | L17: 1 | M17: 1 | N17: 1 | O17: 1 | P17: 1 | Q17: 1 | R17: 1 | S17: 1 | T17: 1 | U17: 1 | V17: 1 | W17: 9 | X17: 9 | Y17: 100 | Z17: 25 | AA17: 75 | AC17: 16 | AD17: Sylvie | AE17: 77 | AF17: =+AE17+AE16 -> 158 | AH17: Position 4
A18: 19 | B18: Jacques3 | C18: 5 | D18: 1 | E18: 1 | F18: 1 | G18: 1 | H18: 1 | I18: 1 | J18: 1 | K18: 1 | L18: 1 | M18: 1 | N18: 1 | O18: 1 | P18: 1 | Q18: 1 | R18: 1 | S18: 1 | T18: 1 | U18: 1 | V18: 1 | W18: 9 | X18: 9 | Y18: 100 | Z18: 14 | AA18: 86 | AC18: 17 | AD18: Pierre1 | AE18: 89 | AF18: =AF19 -> 169
A19: 6 | B19: Jacques4 | C19: 5 | D19: 2 | E19: 1 | F19: 1 | G19: 1 | H19: 1 | I19: 1 | J19: 1 | K19: 1 | L19: 1 | M19: 1 | N19: 1 | O19: 1 | P19: 1 | Q19: 1 | R19: 1 | S19: 1 | T19: 1 | U19: 1 | V19: 1 | W19: 9 | X19: 9 | Y19: 100 | Z19: 17 | AA19: 83 | AC19: 18 | AD19: Louis-René | AE19: 80 | AF19: =+AE19+AE18 -> 169 | AH19: =SMALL(AF2:AF47,7) -> 
A20: 32 | B20: Johanne | C20: 5 | D20: 3 | E20: 1 | F20: 1 | G20: 1 | H20: 1 | I20: 1 | J20: 1 | K20: 1 | L20: 1 | M20: 1 | N20: 1 | O20: 1 | P20: 1 | Q20: 1 | R20: 1 | S20: 1 | T20: 1 | U20: 1 | V20: 1 | W20: 9 | X20: 9 | Y20: 100 | Z20: 14 | AA20: 86 | AC20: 19 | AD20: Jacques3 | AE20: 86 | AF20: =AF21 -> 170
A21: 29 | B21: Lévis | C21: 5 | D21: 4 | E21: 1 | F21: 1 | G21: 1 | H21: 1 | I21: 1 | J21: 1 | K21: 1 | L21: 1 | M21: 1 | N21: 1 | O21: 1 | P21: 1 | Q21: 1 | R21: 1 | S21: 1 | T21: 1 | U21: 1 | V21: 1 | W21: 9 | X21: 9 | Y21: 100 | Z21: 12 | AA21: 88 | AC21: 20 | AD21: Ginette | AE21: 84 | AF21: =+AE21+AE20 -> 170
A22: 2 | B22: Louis | C22: 6 | D22: 1 | E22: 1 | F22: 1 | G22: 1 | H22: 1 | I22: 1 | J22: 1 | K22: 1 | L22: 1 | M22: 1 | N22: 1 | O22: 1 | P22: 1 | Q22: 1 | R22: 1 | S22: 1 | T22: 1 | U22: 1 | V22: 1 | W22: 9 | X22: 9 | Y22: 100 | Z22: 14 | AA22: 86 | AC22: 21 | AD22: Denise2 | AE22: 86 | AF22: =AF23 ->  | AH22: Position 5
A23: 28 | B23: Louise1 | C23: 6 | D23: 2 | E23: 1 | F23: 1 | G23: 1 | H23: 1 | I23: 1 | J23: 1 | K23: 1 | L23: 1 | M23: 1 | N23: 1 | O23: 1 | P23: 1 | Q23: 1 | R23: 1 | S23: 1 | T23: 1 | U23: 1 | V23: 1 | W23: 9 | X23: 9 | Y23: 100 | Z23: 15 | AA23: 85 | AC23: 22 | AF23: =+AE23+AE22 -> 
A24: 12 | B24: Louise2 | C24: 6 | D24: 3 | E24: 1 | F24: 1 | G24: 1 | H24: 1 | I24: 1 | J24: 1 | K24: 1 | L24: 1 | M24: 1 | N24: 1 | O24: 1 | P24: 1 | Q24: 1 | R24: 1 | S24: 1 | T24: 1 | U24: 1 | V24: 1 | W24: 9 | X24: 9 | Y24: 100 | Z24: 22 | AA24: 78 | AC24: 23 | AD24: Gilbert | AE24: 86 | AF24: =AF25 -> 176 | AH24: =SMALL(AF2:AF47,9) -> 
A25: 5 | B25: Louise3 | C25: 6 | D25: 4 | E25: 1 | F25: 1 | G25: 1 | H25: 1 | I25: 1 | J25: 1 | K25: 1 | L25: 1 | M25: 1 | N25: 1 | O25: 1 | P25: 1 | Q25: 1 | R25: 1 | S25: 1 | T25: 1 | U25: 1 | V25: 1 | W25: 9 | X25: 9 | Y25: 100 | Z25: 22 | AA25: 78 | AC25: 24 | AD25: Guy1 | AE25: 90 | AF25: =+AE25+AE24 -> 176
A26: 18 | B26: Louis-René | C26: 7 | D26: 1 | E26: 1 | F26: 1 | G26: 1 | H26: 1 | I26: 1 | J26: 1 | K26: 1 | L26: 1 | M26: 1 | N26: 1 | O26: 1 | P26: 1 | Q26: 1 | R26: 1 | S26: 1 | T26: 1 | U26: 1 | V26: 1 | W26: 9 | X26: 9 | Y26: 100 | Z26: 20 | AA26: 80 | AC26: 25 | AD26: Nicole | AE26: 86 | AF26: =AF27 -> 169
A27: 3 | B27: Luc | C27: 7 | D27: 2 | E27: 1 | F27: 1 | G27: 1 | H27: 1 | I27: 1 | J27: 1 | K27: 1 | L27: 1 | M27: 1 | N27: 1 | O27: 1 | P27: 1 | Q27: 1 | R27: 1 | S27: 1 | T27: 1 | U27: 1 | V27: 1 | W27: 9 | X27: 9 | Y27: 100 | Z27: 18 | AA27: 82 | AC27: 26 | AD27: Serge1 | AE27: 83 | AF27: =+AE27+AE26 -> 169
A28: 3 | B28: Maurice | C28: 7 | D28: 3 | E28: 1 | F28: 1 | G28: 1 | H28: 1 | I28: 1 | J28: 1 | K28: 1 | L28: 1 | M28: 1 | N28: 1 | O28: 1 | P28: 1 | Q28: 1 | R28: 1 | S28: 1 | T28: 1 | U28: 1 | V28: 1 | W28: 9 | X28: 9 | Y28: 100 | Z28: 18 | AA28: 82 | AC28: 27 | AD28: Sylvie1 | AE28: 84 | AF28: =AF29 -> 169
A29: 25 | B29: Nicole | C29: 8 | D29: 1 | E29: 1 | F29: 1 | G29: 1 | H29: 1 | I29: 1 | J29: 1 | K29: 1 | L29: 1 | M29: 1 | N29: 1 | O29: 1 | P29: 1 | Q29: 1 | R29: 1 | S29: 1 | T29: 1 | U29: 1 | V29: 1 | W29: 9 | X29: 9 | Y29: 100 | Z29: 14 | AA29: 86 | AC29: 28 | AD29: Louise1 | AE29: 85 | AF29: =+AE29+AE28 -> 169
A30: 17 | B30: Pierre1 | C30: 8 | D30: 2 | E30: 1 | F30: 1 | G30: 1 | H30: 1 | I30: 1 | J30: 1 | K30: 1 | L30: 1 | M30: 1 | N30: 1 | O30: 1 | P30: 1 | Q30: 1 | R30: 1 | S30: 1 | T30: 1 | U30: 1 | V30: 1 | W30: 9 | X30: 9 | Y30: 100 | Z30: 11 | AA30: 89 | AC30: 29 | AD30: Lévis | AE30: 88 | AF30: =AF31 -> 
A31: 14 | B31: Pierre2 | C31: 8 | D31: 3 | E31: 1 | F31: 1 | G31: 1 | H31: 1 | I31: 1 | J31: 1 | K31: 1 | L31: 1 | M31: 1 | N31: 1 | O31: 1 | P31: 1 | Q31: 1 | R31: 1 | S31: 1 | T31: 1 | U31: 1 | V31: 1 | W31: 9 | X31: 9 | Y31: 100 | Z31: 10 | AA31: 90 | AC31: 30 | AF31: =+AE31+AE30 -> 
A32: 35 | B32: Réal | C32: 8 | D32: 4 | E32: 1 | F32: 1 | G32: 1 | H32: 1 | I32: 1 | J32: 1 | K32: 1 | L32: 1 | M32: 1 | N32: 1 | O32: 1 | P32: 1 | Q32: 1 | R32: 1 | S32: 1 | T32: 1 | U32: 1 | V32: 1 | W32: 9 | X32: 9 | Y32: 99 | Z32: 14 | AA32: 85 | AC32: 31 | AD32: Benoit | AE32: 86 | AF32: =AF33 -> 172
A33: 37 | B33: Réjean | C33: 9 | D33: 1 | E33: 1 | F33: 1 | G33: 1 | H33: 1 | I33: 1 | J33: 1 | K33: 1 | L33: 1 | M33: 1 | N33: 1 | O33: 1 | P33: 1 | Q33: 1 | R33: 1 | S33: 1 | T33: 1 | U33: 1 | V33: 1 | W33: 9 | X33: 9 | Y33: 100 | Z33: 20 | AA33: 80 | AC33: 32 | AD33: Johanne | AE33: 86 | AF33: =+AE33+AE32 -> 172
A34: 15 | B34: Sandy | C34: 9 | D34: 2 | E34: 1 | F34: 1 | G34: 1 | H34: 1 | I34: 1 | J34: 1 | K34: 1 | L34: 1 | M34: 1 | N34: 1 | O34: 1 | P34: 1 | Q34: 1 | R34: 1 | S34: 1 | T34: 1 | U34: 1 | V34: 1 | W34: 9 | X34: 9 | Y34: 100 | Z34: 19 | AA34: 81 | AC34: 33 | AD34: Solange | AE34: 67 | AF34: =AF35 -> 239
A35: 39 | B35: Serge | C35: 9 | D35: 3 | E35: 1 | F35: 1 | G35: 1 | H35: 1 | I35: 1 | J35: 1 | K35: 1 | L35: 1 | M35: 1 | N35: 1 | O35: 1 | P35: 1 | Q35: 1 | R35: 1 | S35: 1 | T35: 1 | U35: 1 | V35: 1 | W35: 9 | X35: 9 | Y35: 100 | Z35: 16 | AA35: 84 | AC35: 34 | AD35: Yvan | AE35: 172 | AF35: =+AE35+AE34 -> 239
A36: 26 | B36: Serge1 | C36: 10 | D36: 1 | E36: 1 | F36: 1 | G36: 1 | H36: 1 | I36: 1 | J36: 1 | K36: 1 | L36: 1 | M36: 1 | N36: 1 | O36: 1 | P36: 1 | Q36: 1 | R36: 1 | S36: 1 | T36: 1 | U36: 1 | V36: 1 | W36: 9 | X36: 9 | Y36: 100 | Z36: 17 | AA36: 83 | AC36: 35 | AD36: Réal | AE36: 85 | AF36: =AF37 -> 173
A37: 4 | B37: Sharon | C37: 10 | D37: 2 | E37: 1 | F37: 1 | G37: 1 | H37: 1 | I37: 1 | J37: 1 | K37: 1 | L37: 1 | M37: 1 | N37: 1 | O37: 1 | P37: 1 | Q37: 1 | R37: 1 | S37: 1 | T37: 1 | U37: 1 | V37: 1 | W37: 9 | X37: 9 | Y37: 100 | Z37: 15 | AA37: 85 | AC37: 36 | AD37: Daniel | AE37: 88 | AF37: =+AE37+AE36 -> 173
A38: 33 | B38: Solange | C38: 10 | D38: 3 | E38: 1 | F38: 1 | G38: 1 | H38: 1 | I38: 1 | J38: 1 | K38: 1 | L38: 1 | M38: 1 | N38: 1 | O38: 1 | P38: 1 | Q38: 1 | R38: 1 | S38: 1 | T38: 1 | U38: 1 | V38: 1 | W38: 9 | X38: 9 | Y38: 99 | Z38: 32 | AA38: 67 | AC38: 37 | AD38: Réjean | AE38: 80 | AF38: =AF39 -> 149
A39: 16 | B39: Sylvie | C39: 10 | D39: 4 | E39: 1 | F39: 1 | G39: 1 | H39: 1 | I39: 1 | J39: 1 | K39: 1 | L39: 1 | M39: 1 | N39: 1 | O39: 1 | P39: 1 | Q39: 1 | R39: 1 | S39: 1 | T39: 1 | U39: 1 | V39: 1 | W39: 9 | X39: 9 | Y39: 100 | Z39: 23 | AA39: 77 | AC39: 38 | AD39: Wayne | AE39: 69 | AF39: =+AE39+AE38 -> 149
A40: 27 | B40: Sylvie1 | C40: 11 | D40: 1 | E40: 1 | F40: 1 | G40: 1 | H40: 1 | I40: 1 | J40: 1 | K40: 1 | L40: 1 | M40: 1 | N40: 1 | O40: 1 | P40: 1 | Q40: 1 | R40: 1 | S40: 1 | T40: 1 | U40: 1 | V40: 1 | W40: 9 | X40: 9 | Y40: 100 | Z40: 16 | AA40: 84 | AC40: 39 | AD40: Serge | AE40: 84 | AF40: =AF41 -> 
A41: 38 | B41: Wayne | C41: 11 | D41: 2 | E41: 1 | F41: 1 | G41: 1 | H41: 1 | I41: 1 | J41: 1 | K41: 1 | L41: 1 | M41: 1 | N41: 1 | O41: 1 | P41: 1 | Q41: 1 | R41: 1 | S41: 1 | T41: 1 | U41: 1 | V41: 1 | W41: 9 | X41: 9 | Y41: 100 | Z41: 31 | AA41: 69 | AC41: 40 | AF41: =+AE41+AE40 -> 
A42: 34 | B42: Yvan | C42: 11 | D42: 3 | E42: 1 | F42: 1 | G42: 1 | H42: 1 | I42: 1 | J42: 1 | K42: 1 | L42: 1 | M42: 1 | N42: 1 | O42: 1 | P42: 1 | Q42: 1 | R42: 1 | S42: 1 | T42: 1 | U42: 1 | V42: 1 | W42: 9 | X42: 9 | Y42: 200 | Z42: 28 | AA42: 172 | AC42: 41 | AD42: Guy | AE42: 86 | AF42: 151
W43: 0 | X43: 0 | Y43: =SUM(E43:V43) -> 0 | Z43: 19 | AA43: 0
W44: 0 | X44: 0 | Y44: 0 | Z44: 9 | AA44: 0
W45: 0 | X45: 0 | Y45: 0 | Z45: 13 | AA45: 0
W46: 0 | X46: 0 | Y46: 0 | Z46: 21 | AA46: 0
W47: 0 | X47: 0 | Y47: 0 | Z47: 17 | AA47: 0
C50: =COUNT(C2:C47) -> 41
C51: Nb de joueurs
